bitfinex-derivatives/quotes_ETHF0:USTF0_20251012
["timestamp","ask_amount","ask_price","bid_price","bid_amount"]
[1760287716891,3.2078,4111.4,4111.3,0.43753]
[1760287717093,3.2078,4111.4,4109.9,3.2078]
[1760287717291,3.2078,4110.9,4110.0,0.43768]
[1760287717489,3.2078,4110.8,4110.0,0.43943067]
[1760287717689,0.00315245,4110.9,4110.7,0.4376]
[1760287717994,3.11568267,4113.0,4112.7,0.43738]
[1760287718189,3.2078,4113.9,4112.2,3.2078]
[1760287718404,3.2078,4113.8,4111.7,3.2078]
[1760287718601,3.2078,4112.8,4112.4,0.43742]
[1760287718797,3.2078,4112.8,4111.3,1.09384]
[1760287718798,0.00180446,4112.8,4112.2,3.2078]
[1760287718999,3.2078,4112.4,4110.6,3.2078]
[1760287719296,0.00180446,4112.8,4110.0,0.00175067]
[1760287719297,3.2078,4112.6,4111.1,3.2078]
[1760287719597,0.00180446,4112.8,4112.5,0.4374]
[1760287719998,3.2078,4112.7,4111.2,3.2078]
[1760287720203,3.2078,4112.2,4111.2,3.2078]
[1760287720405,3.2078,4112.2,4111.0,3.2078]
[1760287720597,0.00180446,4112.8,4112.7,0.43739]
[1760287720898,0.00180446,4112.8,4112.1,3.2078]
[1760287720899,0.00180446,4112.8,4112.6,0.4374]
[1760287721100,0.00180446,4112.8,4112.6,3.6452]
[1760287721299,6.5695,4115.3,4113.2,1.09336]
[1760287721602,3.2078,4113.6,4113.2,0.43734]
[1760287721791,3.2078,4114.1,4112.3,3.2078]
[1760287722098,3.2078,4114.2,4112.8,3.2078]
[1760287722292,3.2078,4113.2,4112.8,0.0022012]
[1760287722899,8.86983852,4113.1,4110.0,3.2078]
[1760287723096,3.2078,4111.9,4110.5,3.2078]
[1760287723400,3.2078,4111.9,4106.6,10.211]
[1760287723401,3.2078,4110.9,4110.4,0.43763]
[1760287723700,3.2078,4111.9,4110.7,0.4376]
[1760287723890,3.2078,4111.9,4111.2,0.43754]
[1760287723891,3.2078,4111.4,4111.2,0.43754]
[1760287724095,2.82e-06,4111.9,4111.7,0.4375]
[1760287724301,3.20780282,4111.9,4110.7,0.00287131]
[1760287724498,2.82e-06,4111.9,4111.4,0.43752]
[1760287724801,2.82e-06,4111.9,4111.8,3.2078]
[1760287725212,2.82e-06,4111.9,4111.7,0.43749]
[1760287725398,2.82e-06,4111.9,4111.7,0.4375]
[1760287725593,3.2078,4113.7,4113.5,0.4373]
[1760287725898,3.2078,4113.7,4110.7,0.00287131]
[1760287725899,3.1417,4114.8,4113.6,3.2078]
[1760287726099,3.2078,4114.6,4113.7,3.2078]
[1760287726293,3.2078,4114.6,4113.9,0.43726]
[1760287726604,3.20975388,4114.6,4113.9,0.00176234]
[1760287726796,0.00195388,4114.6,4113.4,3.2078]
[1760287727104,3.2078,4113.5,4112.7,0.43738]
[1760287727305,3.2078,4114.0,4112.8,3.2078]
[1760287727600,3.2078,4113.4,4112.7,0.43739]
[1760287727799,3.2078,4114.1,4112.7,0.0026889]
[1760287728100,3.2078,4113.6,4113.0,3.2078]
[1760287728298,3.2078,4113.6,4112.8,0.43738]
[1760287728505,3.2078,4113.5,4112.7,0.0026889]
[1760287728703,3.2392,4112.8,4111.3,3.2078]
[1760287728901,6.447,4112.8,4111.7,0.43749]
[1760287729106,6.447,4112.8,4110.4,0.0107]
[1760287729107,3.2078,4111.8,4110.7,3.2078]
[1760287729402,1.09494388,4114.6,4111.7,3.2078]
[1760287729403,3.2078,4113.3,4111.7,3.2078]
[1760287729597,3.2078,4113.3,4112.5,3.2078]
[1760287729793,3.2078,4113.3,4112.5,3.21005586]
[1760287730201,0.00195388,4114.6,4112.5,3.21005586]
[1760287730202,3.2078,4114.4,4113.2,3.2078]
[1760287730501,0.00195388,4114.6,4112.5,0.01295586]
[1760287730502,3.2078,4113.9,4112.9,3.2078]
[1760287730704,3.2078,4113.6,4112.6,0.4374]
[1760287730898,3.2078,4113.9,4112.9,3.2078]
[1760287731100,0.00195388,4114.6,4112.5,0.43966586]
[1760287731101,3.2078,4113.3,4112.5,0.00225586]
[1760287731301,3.2392,4113.8,4112.3,3.2078]
[1760287731602,3.2078,4112.2,4110.3,0.0107]
[1760287731798,3.2392,4113.1,4109.7,1.09428]
[1760287731799,3.2078,4110.9,4110.8,3.2185]
[1760287732000,3.2078,4111.5,4110.9,0.43758]
[1760287732200,3.2078,4111.5,4111.4,3.2185]
[1760287732504,3.21064202,4111.5,4111.4,0.00212634]
[1760287733101,2.18528,4116.0,4111.4,0.00212634]
[1760287733102,3.2078,4112.7,4111.9,3.2157]
[1760287733303,3.18833257,4112.7,4112.6,0.0079]
[1760287733499,3.18833257,4112.7,4112.0,1.09367]
[1760287733500,3.2078,4114.0,4112.8,0.43737]
[1760287733710,3.2078,4113.0,4112.0,0.43746]
[1760287733915,3.2078,4113.7,4112.8,3.2078]
[1760287734113,3.21092459,4113.7,4112.8,3.2078]
[1760287734312,3.21092459,4113.7,4113.6,0.4373]
[1760287734606,0.00312459,4113.7,4113.6,3.6451]
[1760287734809,3.2078,4115.0,4113.6,3.2078]
[1760287735005,3.2078,4114.4,4113.5,3.2078]
[1760287735317,3.2078,4115.0,4114.3,3.2078]
[1760287735511,3.2078,4115.0,4114.2,3.2078]
[1760287735705,3.20950839,4115.0,4114.2,0.00283384]
[1760287736108,0.00170839,4115.0,4114.9,3.2078]
[1760287737208,0.00170839,4115.0,4114.2,0.00283384]
[1760287737612,3.2078,4114.6,4114.2,0.00283384]
[1760287737812,3.20950839,4115.0,4114.2,0.00283384]
[1760287738008,0.00170839,4115.0,4114.5,3.2078]
[1760287738315,3.20950839,4115.0,4114.2,0.00283384]
[1760287738609,0.00170839,4115.0,4114.5,3.2078]
[1760287739316,0.00170839,4115.0,4114.2,0.00283384]
[1760287739505,0.00170839,4115.0,4114.9,3.2078]
[1760287740309,3.2078,4117.2,4114.9,3.2078]
[1760287740504,3.2078,4117.4,4116.1,3.2078]
[1760287740706,2.36807,4120.0,4114.2,0.00283384]
[1760287740707,3.2078,4118.9,4117.3,3.2078]
[1760287741018,3.2078,4118.4,4117.3,3.2078]
[1760287741312,3.2078,4117.4,4117.3,0.00233361]
[1760287741719,3.2078,4117.7,4117.3,0.00233361]
[1760287742109,3.2078,4118.2,4117.3,0.00233361]
[1760287742305,3.2078,4118.3,4117.3,0.00233361]
[1760287742505,0.00247884,4118.4,4117.3,0.00233361]
[1760287742506,0.00247884,4118.4,4117.3,3.21013361]
[1760287743013,0.00247884,4118.4,4117.3,1.66771207]
[1760287743312,6.5846,4117.7,4115.2,1.66537846]
[1760287743516,2.79198641,4118.3,4114.9,3.2078]
[1760287743517,3.2078,4115.4,4114.9,3.2078]
[1760287743816,1.2612,4118.1,4114.9,3.2078]
[1760287743817,3.2078,4117.0,4114.9,3.2078]
[1760287744014,3.2078,4119.5,4116.6,3.2078]
[1760287744214,3.2078,4119.5,4117.2,3.2078]
[1760287744416,3.2078,4118.9,4117.4,3.2078]
[1760287744609,3.2078,4117.9,4117.2,0.00199569]
[1760287744810,3.64452,4119.1,4117.2,0.00199569]
[1760287745121,3.2078,4118.2,4117.2,0.00199569]
[1760287745319,5.82376649,4119.1,4116.7,3.2078]
[1760287745320,3.2078,4117.6,4116.7,3.2078]
[1760287745613,3.2078,4118.6,4117.5,3.2078]
[1760287746014,3.2078,4117.6,4115.7,3.2078]
[1760287746211,3.2078,4116.7,4115.7,3.2078]
[1760287746415,3.2078,4117.9,4116.3,3.2078]
[1760287746607,3.2078,4117.3,4116.3,3.2078]
[1760287746810,3.2078,4117.3,4115.8,1.66537846]
[1760287746811,3.2078,4117.3,4116.5,3.2078]
[1760287747114,2.69198102,4117.9,4115.7,0.00223808]
[1760287747115,3.2078,4118.3,4117.1,3.2078]
[1760287747417,3.64455,4118.8,4117.7,3.2078]
[1760287747717,3.2078,4117.8,4115.9,3.2078]
[1760287748013,0.01,4117.9,4115.7,0.00223808]
[1760287748014,3.2078,4116.6,4115.7,0.00223808]
[1760287748311,0.00169982,4116.6,4115.9,3.2078]
[1760287748514,0.00169982,4116.6,4115.7,0.00223808]
[1760287748515,0.00169982,4116.6,4116.5,3.2078]
[1760287748717,0.00169982,4116.6,4115.7,3.21003808]
[1760287748915,0.00169982,4116.6,4116.2,3.2078]
[1760287749120,0.00169982,4116.6,4115.7,3.21003808]
[1760287749410,0.00169982,4116.6,4116.5,3.2078]
[1760287749615,0.01,4117.9,4116.5,3.2078]
[1760287749808,0.01,4117.9,4115.7,0.00223808]
[1760287749809,0.01,4117.9,4117.4,3.2078]
[1760287750004,3.2078,4117.5,4115.7,3.21003808]
[1760287750209,3.2078,4116.9,4115.7,3.21003808]
[1760287750404,3.2078,4116.2,4115.7,3.21003808]
[1760287750609,0.43737,4112.9,4112.8,1.67311755]
[1760287750909,3.2078,4112.9,4111.3,3.2078]
[1760287751108,3.2078,4112.7,4111.8,3.2078]
[1760287751408,3.2078,4112.7,4112.0,3.2078]
[1760287751721,3.2078,4115.6,4112.5,3.2078]
[1760287751909,3.2078,4115.5,4114.0,3.2078]
[1760287752115,3.2078,4115.5,4113.8,3.2078]
[1760287752416,3.2078,4115.0,4114.2,3.2078]
[1760287752613,3.20996849,4115.0,4113.8,3.2078]
[1760287752916,3.3768,4113.9,4111.8,0.00242053]
[1760287753115,1.2612,4114.0,4113.2,3.2078]
[1760287753417,1.2612,4114.0,4111.8,0.00242053]
[1760287753418,3.2078,4113.7,4112.0,3.2078]
[1760287753614,1.2612,4114.0,4113.1,3.2078]
[1760287753825,0.00216849,4115.0,4113.7,3.2078]
[1760287754121,0.00216849,4115.0,4113.2,3.2078]
[1760287754317,0.00216849,4115.0,4113.8,3.2078]
[1760287754516,0.00216849,4115.0,4112.2,2.11923829]
[1760287754517,0.00216849,4115.0,4114.4,3.2078]
[1760287754714,1.2612,4116.0,4112.9,2.11923829]
[1760287754715,1.2612,4116.0,4114.9,3.2078]
[1760287754915,1.2612,4116.0,4112.1,6.10870462]
[1760287754916,1.2612,4116.0,4115.6,3.2078]
[1760287755116,3.3768,4116.9,4115.6,3.2078]
[1760287755418,3.2078,4117.1,4115.6,3.2078]
[1760287755616,0.4369,4117.4,4116.1,3.2078]
[1760287755824,3.2078,4117.2,4116.1,3.2099413]
[1760287756222,0.00311099,4117.4,4116.6,3.2078]
[1760287756521,0.00311099,4117.4,4116.3,3.2078]
[1760287756718,0.00311099,4117.4,4116.1,0.0021413]
[1760287756719,0.00311099,4117.4,4116.8,3.2078]
[1760287756914,0.01,4117.9,4117.3,3.2078]
[1760287757217,3.2078,4119.7,4117.8,3.2078]
[1760287757419,3.2078,4119.7,4118.4,3.2078]
[1760287757623,3.2078,4118.5,4116.9,3.2078]
[1760287757822,0.00223186,4118.5,4118.1,3.2078]
[1760287758323,0.00223186,4118.5,4117.4,3.2078]
[1760287758820,0.00223186,4118.5,4118.0,3.2078]
[1760287759016,3.21003186,4118.5,4117.5,3.2078]
[1760287759215,3.2078,4118.4,4117.1,3.2078]
[1760287759621,0.00223186,4118.5,4117.6,3.2078]
[1760287760821,3.2078,4118.3,4117.0,3.2078]
[1760287761021,3.2078,4118.4,4117.5,3.2078]
[1760287761326,0.00223186,4118.5,4117.5,3.2078]
[1760287761824,3.2078,4118.3,4117.0,3.2078]
[1760287762129,3.2078,4118.3,4117.5,3.2078]
[1760287762427,3.2078,4117.9,4117.0,3.2078]
[1760287762724,3.2078,4117.9,4116.9,3.2078]
[1760287763318,0.00223186,4118.5,4117.4,3.2078]
[1760287763526,0.00223186,4118.5,4117.9,3.2078]
[1760287763723,0.00223186,4118.5,4118.4,3.2078]
[1760287764419,0.00223186,4118.5,4117.8,3.2078]
[1760287764728,3.2078,4120.9,4118.3,3.2078]
[1760287765029,3.2078,4123.8,4120.8,3.2078]
[1760287765224,3.2078,4122.7,4121.8,3.2078]
[1760287765520,3.2078,4123.5,4122.2,3.2078]
[1760287765725,3.2078,4123.2,4122.2,3.21035681]
[1760287766026,3.2078,4123.0,4122.2,0.00255681]
[1760287766323,0.00293283,4123.5,4121.6,3.2078]
[1760287766516,0.00293283,4123.5,4123.0,3.2078]
[1760287766716,3.2078,4123.2,4122.0,3.2078]
[1760287767119,0.00293283,4123.5,4122.0,3.21070392]
[1760287767425,3.2078,4123.1,4122.0,3.21070392]
[1760287767614,0.00293283,4123.5,4122.0,3.21070392]
[1760287767824,3.2078,4122.5,4122.0,0.00290392]
[1760287768218,3.2078,4123.1,4122.0,0.00290392]
[1760287768523,0.00293283,4123.5,4122.1,3.2078]
[1760287768726,3.2078,4123.6,4122.6,3.2078]
[1760287769415,3.2078,4123.0,4122.0,0.00290392]
[1760287769615,3.2078,4122.4,4122.0,0.00290392]
[1760287769822,3.2078,4122.4,4121.3,3.2078]
[1760287770029,0.0031202,4123.0,4121.3,3.2078]
[1760287770030,3.2078,4121.8,4121.3,3.2078]
[1760287770215,3.2078,4121.8,4120.4,3.2078]
[1760287770420,3.2078,4121.0,4119.9,3.2078]
[1760287770624,3.2078,4121.5,4119.9,3.2078]
[1760287770923,3.2078,4121.5,4120.6,3.2078]
[1760287771120,3.2078,4121.5,4119.9,0.00225764]
[1760287771121,3.2078,4120.7,4119.9,0.00225764]
[1760287771330,3.2078,4120.0,4119.9,0.00225764]
[1760287771520,3.2078,4120.0,4118.6,3.2078]
[1760287771521,0.43665,4119.4,4118.6,3.2078]
[1760287771727,3.2078,4119.8,4118.1,3.2078]
[1760287771921,3.2078,4119.9,4118.7,3.2078]
[1760287772121,3.2078,4119.9,4119.0,3.2078]
[1760287772425,0.00204175,4120.0,4119.0,3.2078]
[1760287772639,3.2078,4121.3,4119.8,0.0048]
[1760287772924,3.203,4121.3,4120.5,0.0048]
[1760287773431,3.2078,4122.2,4121.2,3.2078]
[1760287773624,3.2078,4121.7,4121.2,0.00267261]
[1760287773826,3.21042058,4122.2,4121.2,3.21047261]
[1760287774031,3.64677058,4122.2,4121.2,3.21047261]
[1760287774236,0.00262058,4122.2,4121.7,3.2078]
[1760287775431,3.2078,4123.4,4121.7,3.2078]
[1760287775735,3.2078,4123.4,4122.6,3.2078]
[1760287775931,3.2078,4122.9,4121.5,3.2078]
[1760287776134,3.2078,4122.9,4121.2,0.00267261]
[1760287776135,3.2078,4122.2,4121.2,3.21047261]
[1760287776347,3.20981141,4122.2,4121.2,0.00267261]
[1760287776824,3.2078,4121.4,4121.2,0.00267261]
[1760287777026,3.64424,4121.4,4120.0,3.2078]
[1760287777342,3.2078,4120.2,4119.1,3.2078]
[1760287777522,3.3497,4121.4,4118.6,6.05989294]
[1760287777523,3.2078,4119.2,4118.6,6.05989294]
[1760287777724,4.29919902,4121.3,4117.3,3.2078]
[1760287777725,3.2078,4118.7,4117.3,3.2078]
[1760287777925,3.2078,4119.9,4118.6,3.2078]
[1760287778226,0.00273578,4118.7,4118.0,3.2078]
[1760287778424,0.00273578,4118.7,4118.5,3.2078]
[1760287779026,0.00273578,4118.7,4118.0,3.2078]
[1760287779332,0.00273578,4118.7,4118.6,3.2078]
[1760287780030,0.00273578,4118.7,4117.8,3.2078]
[1760287780834,0.00273578,4118.7,4117.5,6.05989294]
[1760287780835,0.00273578,4118.7,4118.3,3.2078]
[1760287781132,0.00273578,4118.7,4118.5,6.05989294]
[1760287781330,3.2078,4120.4,4118.5,6.05989294]
[1760287781533,3.2078,4120.4,4119.2,3.2078]
[1760287781723,3.2078,4120.9,4119.2,3.2078]
[1760287782034,3.2078,4120.4,4119.2,3.2078]
[1760287782235,3.2078,4120.4,4117.3,0.00262339]
[1760287782236,0.00182006,4120.4,4120.3,3.2078]
[1760287782431,1.99523786,4122.1,4120.3,3.2078]
[1760287782639,1.99523786,4122.1,4118.6,5.60768819]
[1760287782640,3.2078,4123.3,4122.0,9.26769294]
[1760287782835,3.2078,4122.6,4121.2,1.66720825]
[1760287783134,3.2078,4122.6,4121.3,3.2078]
[1760287783437,3.20980529,4122.6,4121.3,3.20957214]
[1760287783641,3.2078,4122.1,4121.3,0.00177214]
[1760287783835,3.2078,4121.6,4121.3,0.00177214]
[1760287784030,3.2078,4122.2,4121.3,0.00177214]
[1760287784336,0.43671,4118.8,4117.9,3.2078]
[1760287784531,3.3497,4118.9,4117.1,3.2078]
[1760287784532,3.2078,4118.0,4117.1,3.2078]
[1760287784830,3.2078,4118.0,4116.6,3.2078]
[1760287785033,3.2078,4117.5,4116.6,3.2078]
[1760287785238,3.21059592,4118.0,4116.7,1.6672]
[1760287785438,0.00279592,4118.0,4117.3,3.2078]
[1760287785742,3.2078,4117.8,4116.7,1.6672]
[1760287785937,0.00279592,4118.0,4116.7,1.6672]
[1760287786237,0.00279592,4118.0,4116.6,3.21074518]
[1760287786238,3.2078,4119.3,4117.6,6.05989294]
[1760287786429,3.2078,4119.3,4118.1,1.6644]
[1760287786629,3.2078,4120.0,4119.0,3.2078]
[1760287786832,3.2078,4120.0,4118.6,3.2078]
[1760287787041,3.2078,4119.5,4118.6,3.2078]
[1760287787338,0.00240484,4119.5,4119.1,3.2078]
[1760287787731,0.00240484,4119.5,4118.6,3.2078]
[1760287787932,3.2078,4121.3,4119.4,3.2078]
[1760287788135,3.2078,4121.2,4119.9,3.2078]
[1760287788333,4.44088,4121.1,4119.9,3.2078]
[1760287788541,3.64439,4120.0,4118.6,3.2078]
[1760287788839,0.43662,4119.6,4118.6,3.2078]
[1760287789039,3.2078,4119.4,4118.6,3.20992]
[1760287789232,3.2078,4117.4,4116.8,4.29885996]
[1760287789530,3.2078,4116.9,4115.8,3.3436]
[1760287789735,3.2078,4116.1,4115.2,3.2078]
[1760287789932,3.2078,4115.6,4114.8,3.3436]
[1760287790236,0.00216385,4115.6,4114.9,3.2078]
[1760287790436,0.00216385,4115.6,4115.5,6.5514]
[1760287790634,0.00216385,4115.6,4115.5,3.3436]
[1760287790833,0.43921385,4115.6,4114.8,0.00232906]
[1760287791043,3.2078,4115.3,4114.8,0.00232906]
[1760287791439,0.00216385,4115.6,4114.8,3.34592906]
[1760287791644,0.4371,4115.1,4114.8,0.00232906]
[1760287791940,3.2078,4115.4,4114.8,0.00232906]
[1760287792141,3.2078,4115.4,4111.4,5.60768819]
[1760287792142,10.93315,4113.1,4111.4,5.60768819]
[1760287792343,3.2078,4112.5,4111.5,3.2078]
[1760287792533,3.2078,4114.1,4112.3,3.2078]
[1760287792840,3.4194,4114.8,4113.4,3.2078]
[1760287793033,3.4194,4114.8,4112.3,6.05989294]
[1760287793034,3.4194,4114.8,4113.9,3.2078]
[1760287793239,3.42122059,4114.8,4113.9,3.2097527]
[1760287793544,0.00182059,4114.8,4113.9,0.0019527]
[1760287793848,0.43716,4114.6,4113.9,3.2097527]
[1760287794234,3.4194,4114.2,4113.9,0.0019527]
[1760287794430,3.4194,4114.0,4113.9,0.0019527]
[1760287794732,3.2078,4114.5,4113.9,0.0019527]
[1760287794937,0.43896059,4114.8,4113.9,3.2097527]
[1760287795152,0.00182059,4114.8,4114.6,3.2078]
[1760287795644,3.4194,4114.7,4114.1,3.2078]
[1760287795835,3.4194,4114.3,4114.1,3.2078]
[1760287796046,0.43714,4114.7,4114.1,3.2078]
[1760287796341,0.00182059,4114.8,4114.0,3.2078]
[1760287796837,0.00182059,4114.8,4111.2,1.33702503]
[1760287796838,3.4194,4113.3,4111.2,0.24323503]
[1760287797043,3.2078,4113.0,4111.2,0.24323503]
[1760287797238,1.09468059,4114.8,4111.5,3.2078]
[1760287797441,3.2078,4114.1,4112.6,3.2098]
[1760287797647,3.64501,4114.1,4112.6,3.2098]
[1760287797846,3.64501,4114.1,4113.1,3.2078]
[1760287798042,0.43727,4113.6,4112.6,6.41969166]
[1760287798346,0.43724,4113.9,4113.2,3.2078]
[1760287798546,3.2078,4114.1,4112.7,3.2078]
[1760287798747,0.43732,4113.1,4112.6,0.00209166]
[1760287798944,1.09321,4113.4,4112.6,0.00209166]
[1760287799148,15.44308,4114.0,4112.6,0.00209166]
[1760287799149,0.43735,4112.7,4112.6,0.00209166]
[1760287799448,3.2078,4113.0,4112.6,0.00209166]
[1760287799847,0.43734,4112.8,4112.7,2.2078]
[1760287800050,3.4194,4113.8,4112.6,0.00209166]
[1760287800252,3.2078,4114.4,4113.2,3.2078]
[1760287800453,10.92583,4115.8,4114.2,3.2078]
[1760287800454,3.2078,4114.9,4114.2,3.2078]
[1760287800644,3.2078,4114.9,4114.3,3.2098]
[1760287800951,3.2078,4114.9,4112.6,0.00209166]
[1760287800952,10.93017,4114.2,4112.6,0.00209166]
[1760287801153,10.929,4114.6,4111.3,3.2078]
[1760287801154,6.6272,4112.8,4111.3,3.2078]
[1760287801444,6.6272,4112.8,4111.2,0.24323503]
[1760287801445,3.8569,4111.3,4111.2,5.03e-06]
[1760287801648,0.43762,4110.3,4108.8,3.2098]
[1760287801853,3.4194,4110.5,4108.8,3.2098]
[1760287802149,3.2078,4109.6,4108.8,0.00245005]
[1760287802449,3.4194,4109.7,4108.8,0.00245005]
[1760287802450,3.4194,4109.7,4108.9,3.2078]
[1760287802750,0.00220833,4110.5,4109.5,3.2256]
[1760287802952,12.2594,4113.0,4109.5,3.2256]
[1760287802953,3.64518,4112.5,4110.4,3.2078]
[1760287803151,3.64518,4112.5,4110.9,3.2078]
[1760287803152,3.3234,4112.3,4110.9,3.2078]
[1760287803344,1.3262,4113.0,4108.8,0.00245005]
[1760287803345,1.3262,4113.0,4111.4,3.2078]
[1760287803653,6.5312,4114.4,4112.7,3.2078]
[1760287803856,3.13589308,4112.9,4112.7,0.00174444]
[1760287804048,3.3234,4112.8,4112.7,0.00174444]
[1760287804357,3.3234,4113.9,4112.7,3.20954444]
[1760287804653,3.3234,4112.8,4112.7,0.00174444]
[1760287804846,0.43736,4112.7,4110.3,3.2078]
[1760287805159,1.09314,4113.7,4112.6,3.2078]
[1760287805160,3.3234,4113.7,4112.6,3.2078]
[1760287805353,0.00278695,4114.4,4113.4,3.2078]
[1760287805648,3.3234,4114.2,4113.2,3.2078]
[1760287805844,5.91786673,4114.3,4111.4,3.2078]
[1760287805845,6.5312,4113.3,4111.4,3.2078]
[1760287806043,3.2078,4111.8,4110.5,3.2078]
[1760287806365,3.3234,4112.2,4111.7,3.2078]
[1760287806544,1.3174,4113.0,4111.7,3.2078]
[1760287806745,3.3234,4114.2,4112.8,3.2078]
[1760287806946,3.3234,4114.2,4113.3,3.2078]
[1760287807250,0.00278695,4114.4,4113.3,3.2078]
[1760287807454,0.00278695,4114.4,4112.8,3.23268223]
[1760287807455,3.3234,4115.2,4114.3,3.2078]
[1760287807645,3.3234,4116.0,4114.8,3.2078]
[1760287807850,3.3234,4112.9,4112.8,0.00238223]
[1760287808045,6.5312,4112.9,4112.8,0.00238223]
[1760287808256,6.96854,4112.9,4111.1,3.2078]
[1760287808551,3.2078,4113.4,4111.8,3.3883]
[1760287808752,3.2078,4113.1,4112.0,3.2078]
[1760287808948,3.2078,4114.0,4112.9,3.2078]
[1760287809150,0.00263481,4114.0,4112.9,0.00231208]
[1760287809347,0.00263481,4114.0,4113.1,3.2078]
[1760287809650,0.00263481,4114.0,4113.5,3.3883]
[1760287809854,3.2078,4115.8,4113.9,3.2078]
[1760287810166,3.2078,4115.8,4110.0,2.09509449]
[1760287810167,3.3234,4113.0,4110.6,3.2078]
[1760287810350,3.2078,4113.4,4112.2,3.3883]
[1760287810758,3.2078,4113.2,4112.2,3.3883]
[1760287810961,3.3234,4113.9,4112.2,3.3883]
[1760287810962,3.2078,4112.7,4112.2,3.3883]
[1760287811156,0.43739,4112.4,4112.2,0.00284735]
[1760287811564,3.20996093,4112.7,4112.2,0.00284735]
[1760287811860,0.43737,4112.6,4112.2,0.00284735]
[1760287812054,0.43738,4112.5,4112.2,0.00284735]
[1760287812248,3.20996093,4112.7,4112.2,0.00284735]
[1760287812750,0.4374,4112.3,4112.2,0.00284735]
[1760287812956,2.76950379,4112.6,4110.1,3.3883]
[1760287812957,0.43759,4110.6,4110.1,3.3883]
[1760287813159,3.2078,4110.6,4109.3,3.3883]
[1760287813657,3.2078,4111.7,4110.0,3.3883]
[1760287813867,3.2078,4110.4,4110.0,3.39121505]
[1760287814164,3.2078,4110.4,4110.1,3.3883]
[1760287814352,3.2078,4110.4,4110.0,0.00291505]
[1760287814552,3.2078,4110.1,4110.0,0.00291505]
[1760287814862,6.5312,4110.1,4110.0,0.00291505]
[1760287815064,9.66947979,4110.1,4107.7,6.5961]
[1760287815257,3.3234,4110.1,4108.3,3.2078]
[1760287815559,3.2078,4110.2,4108.9,4.6795]
[1760287815865,1.09343,4112.6,4109.9,3.3883]
[1760287815866,3.2078,4110.7,4109.9,3.3883]
[1760287816063,3.2078,4110.1,4109.9,0.00242408]
[1760287816362,6.5312,4110.1,4109.9,0.00242408]
[1760287816561,6.46360075,4110.0,4109.9,0.00242408]
[1760287816863,3.76104,4110.0,4109.9,0.00242408]
[1760287817054,3.76104,4110.0,4107.3,3.82623]
[1760287817055,9.68760034,4110.0,4107.3,3.82623]
[1760287817259,3.2078,4109.4,4107.3,3.3883]
[1760287817458,3.2078,4109.4,4107.7,3.3883]
[1760287817757,3.2078,4109.6,4108.6,3.2078]
[1760287817964,3.21003539,4109.6,4108.6,0.00271995]
[1760287818258,3.2078,4109.1,4108.6,0.00271995]
[1760287818463,0.00223539,4109.6,4109.5,3.3883]
[1760287818653,18.08591294,4113.2,4108.6,0.00271995]
[1760287818654,1.99341194,4111.2,4109.7,3.3883]
[1760287818856,3.2078,4111.1,4109.8,3.2078]
[1760287819055,3.2078,4111.1,4110.6,0.43757]
[1760287819254,3.2078,4111.7,4110.5,3.2078]
[1760287819461,3.2078,4112.2,4110.6,4.6795]
[1760287819761,0.00278651,4112.2,4111.3,3.3883]
[1760287819953,3.64526,4111.8,4109.7,3.2078]
[1760287820159,3.2078,4110.8,4109.7,3.2078]
[1760287820359,3.2078,4109.8,4108.7,3.3883]
[1760287820560,3.2078,4109.1,4108.3,3.2078]
[1760287820761,3.2078,4109.1,4107.0,3.3883]
[1760287820762,3.21024251,4109.1,4107.0,3.3883]
[1760287820964,3.2078,4107.9,4107.0,3.3883]
[1760287821161,0.00244251,4109.1,4107.0,3.3883]
[1760287821162,3.2078,4108.4,4107.0,3.3883]
[1760287821462,0.00244251,4109.1,4108.3,3.2078]
[1760287821658,0.00244251,4109.1,4108.4,3.3883]
[1760287822066,0.00244251,4109.1,4108.3,0.00208724]
[1760287822263,3.2078,4110.9,4109.0,3.3883]
[1760287822561,3.2078,4111.4,4110.4,3.3883]
[1760287822767,3.2078,4111.6,4110.9,0.43753]
[1760287823065,3.2078,4111.6,4110.8,3.3883]
[1760287823266,3.20964963,4111.6,4110.8,3.3883]
[1760287823460,3.2078,4111.1,4110.8,3.3883]
[1760287823668,3.2078,4110.9,4110.8,3.3883]
[1760287823875,3.2078,4111.5,4110.8,3.3883]
[1760287824463,3.2078,4110.9,4109.0,2.92673924]
[1760287824766,3.2078,4109.6,4108.8,3.2078]
[1760287824962,0.43779,4108.6,4108.3,0.00208724]
[1760287825176,0.43789,4107.7,4106.1,3.3883]
[1760287825466,3.64566,4108.0,4105.9,3.3883]
[1760287825655,3.2078,4107.3,4105.9,3.3883]
[1760287825962,3.2078,4106.8,4105.9,3.3883]
[1760287826164,3.2078,4106.3,4105.9,0.00306751]
[1760287826569,0.43805,4106.2,4105.9,0.00306751]
[1760287826755,6.5364937,4106.2,4104.3,3.3883]
[1760287827062,6.5364937,4106.2,4103.5,3.3883]
[1760287827063,6.96934,4105.3,4103.5,3.3883]
[1760287827271,3.2078,4105.3,4103.5,3.3883]
[1760287827467,3.2078,4105.3,4101.1,2.92673924]
[1760287827468,0.4384,4102.9,4100.5,3.2078]
[1760287827663,3.2078,4102.6,4101.1,3.2078]
[1760287827861,3.21057909,4102.6,4101.6,3.3883]
[1760287828061,3.21057909,4102.6,4101.7,3.2078]
[1760287828255,0.00277909,4102.6,4101.7,3.2078]
[1760287828460,0.00277909,4102.6,4102.3,3.2078]
[1760287828759,3.2078,4102.5,4101.3,3.2078]
[1760287828959,6.35932104,4102.5,4101.3,3.2078]
[1760287829164,3.3234,4103.0,4101.1,0.00273559]
[1760287829165,3.2078,4102.0,4101.1,0.00273559]
[1760287829359,3.2078,4101.5,4101.1,0.00273559]
[1760287829659,0.00181879,4101.5,4101.1,0.00273559]
[1760287829865,0.00181879,4101.5,4101.4,3.3883]
[1760287830054,3.2078,4103.5,4101.4,3.3883]
[1760287830256,10.94912,4107.0,4103.2,3.2078]